fUSD/lending_fUSD_20260201
["ID","MTS","AMOUNT","RATE_DAILY","PERIOD"]
[404208016,1769966394932,-271.65783,0.00038356,120]
[404208017,1769966394986,-271.65783,0.00038356,120]
[404208018,1769966395043,-271.65783,0.00038356,120]
[404208019,1769966395098,-271.65783,0.00038356,120]
[404208020,1769966395152,-271.65783,0.00038356,120]
[404208021,1769966395207,-271.65783,0.00038356,120]
[404208022,1769966395262,-271.65783,0.00038356,120]
[404208023,1769966395323,-271.65783,0.00038356,120]
[404208024,1769966395379,-271.65783,0.00038356,120]
[404208025,1769966395432,-271.65783,0.00038356,120]
[404208026,1769966395486,-271.65783,0.00038356,120]
[404208027,1769966395541,-271.65783,0.00038356,120]
[404208028,1769966395596,-271.65783,0.00038356,120]
[404208029,1769966395649,-271.65783,0.00038356,120]
[404208030,1769966395704,-271.657838,0.00038356,120]
[404208031,1769966395757,-151.0,0.00038356,120]
[404208032,1769966395815,-151.0,0.00038356,120]
[404208033,1769966395872,-151.0,0.00038356,120]
[404208034,1769966395930,-242.033112,0.00038356,120]
[404208035,1769966395990,-151.0,0.00038356,120]
[404208036,1769966396047,-151.0,0.00038356,120]
[404208037,1769966396105,-151.0,0.00038356,120]
[404208038,1769966396163,-151.0,0.00038356,120]
[404208039,1769966396221,-151.0,0.00038356,120]
[404208040,1769966396278,-151.0,0.00038356,120]
[404208041,1769966396337,-165.93448,0.00038356,120]
[404208042,1769966396393,-151.0,0.00038356,120]
[404208043,1769966396450,-151.0,0.00038356,120]
[404208044,1769966396506,-283.79856,0.00038356,120]
[404208045,1769966396563,-184.249113,0.00038356,120]
[404208046,1769966396622,-184.249113,0.00038356,120]
[404208047,1769966396679,-184.249113,0.00038356,120]
[404208048,1769966396741,-184.249113,0.00038356,120]
[404208049,1769966396797,-184.249113,0.00038356,120]
[404208050,1769966396853,-184.249113,0.00038356,120]
[404208051,1769966396907,-184.249113,0.00038356,120]
[404208052,1769966396964,-184.249113,0.00038356,120]
[404208053,1769966397021,-184.249113,0.00038356,120]
[404208054,1769966397077,-184.249113,0.00038356,120]
[404208055,1769966397131,-184.249113,0.00038356,120]
[404208056,1769966397195,-184.249113,0.00038356,120]
[404208057,1769966397258,-184.249113,0.00038356,120]
[404208058,1769966397314,-184.249113,0.00038356,120]
[404208059,1769966397370,-184.249113,0.00038356,120]
[404208060,1769966397426,-184.249113,0.00038356,120]
[404208061,1769966397481,-184.249113,0.00038356,120]
[404208062,1769966397539,-184.249113,0.00038356,120]
[404208063,1769966397597,-184.249113,0.00038356,120]
[404208064,1769966397654,-184.249113,0.00038356,120]
[404208065,1769966397711,-207.292697,0.00038356,120]
[404208066,1769966397766,-151.0,0.00038356,120]
[404208067,1769966397824,-151.0,0.00038356,120]
[404208068,1769966397881,-151.0,0.00038356,120]
[404208069,1769966397937,-301.164871,0.00038356,120]
[404208070,1769966397998,-253.950691,0.00038356,120]
[404208071,1769966398058,-253.950691,0.00038356,120]
[404208072,1769966398120,-253.950691,0.00038356,120]
[404208073,1769966398180,-253.950691,0.00038356,120]
[404208074,1769966398238,-151.0,0.00038356,120]
[404208075,1769966398295,-253.950691,0.00038356,120]
[404208076,1769966398353,-151.0,0.00038356,120]
[404208077,1769966398408,-253.950691,0.00038356,120]
[404208078,1769966398465,-253.950691,0.00038356,120]
[404208079,1769966398521,-151.0,0.00038356,120]
[404208080,1769966398577,-253.950691,0.00038356,120]
[404208081,1769966398635,-151.0,0.00038356,120]
[404208082,1769966398693,-253.950691,0.00038356,120]
[404208083,1769966398935,-253.950691,0.00038356,120]
[404208084,1769966399001,-151.0,0.00038356,120]
[404208085,1769966399057,-253.950691,0.00038356,120]
[404208086,1769966399119,-151.0,0.00038356,120]
[404208087,1769966399176,-151.0,0.00038356,120]
[404208088,1769966399235,-253.950691,0.00038356,120]
[404208089,1769966399291,-193.948426,0.00038356,120]
[404208090,1769966399349,-151.0,0.00038356,120]
[404208091,1769966399411,-253.950691,0.00038356,120]
[404208092,1769966399469,-151.0,0.00038356,120]
[404208093,1769966399529,-253.950691,0.00038356,120]
[404208094,1769966399589,-257.89633,0.00038356,120]
[404208095,1769966399667,-253.950691,0.00038356,120]
[404208096,1769966399729,-253.950691,0.00038356,120]
[404208097,1769966399794,-253.950691,0.00038356,120]
[404208098,1769966399855,-178.502535,0.00038356,120]
[404208099,1769966399916,-253.950691,0.00038356,120]
[404208100,1769966399981,-253.950691,0.00038356,120]
[404208101,1769966400041,-253.950688,0.00038356,120]
[404208102,1769966400101,-223.321345,0.00038356,120]
[404208103,1769966400162,-230.043161,0.00038356,120]
[404208104,1769966400225,-151.0,0.00038356,120]
[404208105,1769966400286,-151.0,0.00038356,120]
[404208106,1769966400347,-151.0,0.00038356,120]
[404208107,1769966400405,-288.513709,0.00038356,120]
[404208108,1769966400463,-171.026367,0.00038356,120]
[404208109,1769966400522,-151.0,0.00038356,30]
[404208110,1769966400583,-155.491448,0.00038356,30]
[404208111,1769966400646,-151.0,0.00038356,120]
[404208112,1769966400709,-151.0,0.00038356,120]
[404208113,1769966400769,-264.049633,0.00038356,120]
[404208114,1769966400827,-151.0,0.00038356,120]
[404208115,1769966400895,-151.0,0.00038356,120]
[404208116,1769966400972,-151.0,0.00038356,120]
[404208117,1769966401034,-151.0,0.00038356,120]
[404208118,1769966401095,-151.0,0.00038356,120]
[404208119,1769966401153,-151.0,0.00038356,120]
[404208120,1769966401210,-187.319453,0.00038356,120]
[404208121,1769966401268,-160.969174,0.00038356,120]
[404208122,1769966401326,-151.0,0.00038356,120]
[404208123,1769966401385,-151.0,0.00038356,120]
[404208124,1769966401442,-151.0,0.00038356,120]
[404208125,1769966401503,-151.0,0.00038356,120]
[404208126,1769966401563,-151.0,0.00038356,120]
[404208127,1769966401622,-151.0,0.00038356,120]
[404208128,1769966401680,-155.041298,0.00038356,120]
[404208129,1769966401740,-151.0,0.00038356,120]
[404208130,1769966401801,-151.0,0.00038356,120]
[404208131,1769966401862,-151.0,0.00038356,120]
[404208132,1769966401927,-151.0,0.00038356,120]
[404208133,1769966402007,-151.0,0.00038356,120]
[404208134,1769966402067,-151.0,0.00038356,120]
[404208135,1769966402125,-213.618018,0.00038356,120]
[404208136,1769966402183,-151.0,0.00038356,120]
[404208137,1769966402240,-151.0,0.00038356,120]
[404208138,1769966402299,-151.0,0.00038356,120]
[404208139,1769966402356,-151.0,0.00038356,120]
[404208140,1769966402416,-151.0,0.00038356,120]
[404208141,1769966402476,-259.604965,0.00038356,120]
[404208142,1769966402536,-242.893514,0.00038356,120]
[404208143,1769966402594,-151.0,0.00038356,120]
[404208144,1769966402654,-259.604965,0.00038356,120]
[404208145,1769966402712,-151.0,0.00038356,120]
[404208146,1769966402769,-259.604965,0.00038356,120]
[404208147,1769966402827,-151.0,0.00038356,120]
[404208148,1769966402885,-259.604965,0.00038356,120]
[404208149,1769966402944,-151.0,0.00038356,120]
[404208150,1769966403004,-259.604965,0.00038356,120]
[404208151,1769966403080,-212.426078,0.00038356,120]
[404208152,1769966403146,-259.604965,0.00038356,120]
[404208153,1769966403212,-259.604965,0.00038356,120]
[404208154,1769966403276,-259.604965,0.00038356,120]
[404208155,1769966403341,-259.604965,0.00038356,120]
[404208156,1769966403405,-259.604965,0.00038356,120]
[404208157,1769966403470,-259.604965,0.00038356,120]
[404208158,1769966403534,-259.604965,0.00038356,120]
[404208159,1769966403601,-151.0,0.00038356,120]
[404208160,1769966403665,-151.0,0.00038356,120]
[404208161,1769966403730,-259.604965,0.00038356,120]
[404208162,1769966403796,-259.604965,0.00038356,120]
[404208163,1769966403860,-210.423297,0.00038356,120]
[404208164,1769966403927,-259.604965,0.00038356,120]
[404208165,1769966403994,-259.604965,0.00038356,120]
[404208166,1769966404061,-259.604965,0.00038356,120]
[404208167,1769966404128,-259.604965,0.00038356,120]
[404208168,1769966404193,-259.604965,0.00038356,120]
[404208169,1769966404258,-259.604957,0.00038356,120]
[404208170,1769966404322,-161.18557,0.00038356,120]
[404208171,1769966404386,-151.0,0.00038356,120]
[404208172,1769966404449,-151.0,0.00038356,120]
[404208173,1769966404514,-151.0,0.00038356,120]
[404208174,1769966404579,-151.0,0.00038356,120]
[404208175,1769966404642,-298.338623,0.00038356,120]
[404208176,1769966404707,-151.0,0.00038356,120]
[404208177,1769966404770,-151.0,0.00038356,120]
[404208178,1769966404975,-151.0,0.00038356,120]
[404208179,1769966405043,-151.0,0.00038356,120]
[404208180,1769966405112,-151.0,0.00038356,120]
[404208181,1769966405179,-151.0,0.00038356,120]
[404208182,1769966405249,-151.0,0.00038356,120]
[404208183,1769966405317,-151.0,0.00038356,120]
[404208184,1769966405383,-234.792421,0.00038356,120]
[404208185,1769966405446,-151.0,0.00038356,120]
[404208186,1769966405514,-151.0,0.00038356,120]
[404208187,1769966405580,-151.0,0.00038356,120]
[404208188,1769966405650,-151.0,0.00038356,120]
[404208189,1769966405715,-151.0,0.00038356,120]
[404208190,1769966405779,-151.0,0.00038356,120]
[404208191,1769966405847,-232.445526,0.00038356,120]
[404208192,1769966405913,-151.0,0.00038356,120]
[404208193,1769966405987,-206.429254,0.00038356,120]
[404208194,1769966406054,-208.181977,0.00038356,120]
[404208195,1769966406118,-151.0,0.00038356,120]
[404208196,1769966406183,-151.0,0.00038356,120]
[404208197,1769966406249,-151.0,0.00038356,120]
[404208198,1769966406312,-151.0,0.00038356,120]
[404208199,1769966406375,-163.176154,0.00038356,120]
[404208200,1769966406437,-151.0,0.00038356,120]
[404208201,1769966406501,-151.0,0.00038356,120]
[404208202,1769966406565,-158.807906,0.00038356,120]
[404208203,1769966406627,-151.0,0.00038356,120]
[404208204,1769966406691,-237.919227,0.00038356,120]
[404208205,1769966406755,-151.0,0.00038356,120]
[404208206,1769966406820,-151.0,0.00038356,120]
[404208207,1769966406884,-151.0,0.00038356,120]
[404208208,1769966406949,-156.79748,0.00038356,120]
[404208209,1769966407017,-151.0,0.00038356,120]
[404208210,1769966407086,-151.0,0.00038356,120]
[404208211,1769966407152,-151.0,0.00038356,120]
[404208212,1769966407216,-151.0,0.00038356,120]
[404208213,1769966407279,-151.0,0.00038356,120]
[404208214,1769966407343,-206.116621,0.00038356,120]
[404208215,1769966407407,-151.0,0.00038356,120]
[404208216,1769966407470,-160.60357,0.00038356,120]
[404208217,1769966407535,-159.693052,0.00038356,120]
[404208218,1769966407601,-151.0,0.00038356,120]
[404208219,1769966407666,-151.0,0.00038356,120]
[404208220,1769966407732,-183.552872,0.00038356,120]
[404208221,1769966407801,-294.661696,0.00038356,120]
[404208222,1769966407870,-163.8627,0.00038356,120]
[404208223,1769966407942,-151.0,0.00038356,120]
[404208224,1769966408011,-151.0,0.00038356,120]
[404208225,1769966408081,-395.107215,0.00038356,120]
[404208226,1769966408155,-298.579193,0.00038356,120]
[404208227,1769966408224,-395.107215,0.00038356,120]
[404208228,1769966408296,-395.107215,0.00038356,120]
[404208229,1769966408363,-395.107215,0.00038356,120]
[404208230,1769966408429,-395.107215,0.00038356,120]
[404208231,1769966408494,-151.0,0.00038356,120]
[404208232,1769966408559,-395.107215,0.00038356,120]
[404208233,1769966408624,-294.013324,0.00038356,120]
[404208234,1769966408690,-395.107215,0.00038356,120]
[404208235,1769966408757,-395.107215,0.00038356,120]
[404208236,1769966408824,-395.107215,0.00038356,120]
[404208237,1769966408895,-395.107215,0.00038356,120]
[404208238,1769966408966,-395.107215,0.00038356,120]
[404208239,1769966409036,-395.107215,0.00038356,120]
[404208240,1769966409105,-395.107215,0.00038356,120]
[404208241,1769966409172,-163.434185,0.00038356,120]
[404208242,1769966409239,-395.107215,0.00038356,120]
[404208243,1769966409304,-163.434185,0.00038356,120]
[404208244,1769966409369,-395.107215,0.00038356,120]
[404208245,1769966409435,-163.434185,0.00038356,120]
[404208246,1769966409515,-395.107215,0.00038356,120]
[404208247,1769966409583,-163.434185,0.00038356,120]
[404208248,1769966409651,-395.107215,0.00038356,120]
[404208249,1769966409716,-163.434185,0.00038356,120]
[404208250,1769966409780,-395.107215,0.00038356,120]
[404208251,1769966409847,-163.434185,0.00038356,120]
[404208252,1769966409910,-395.107215,0.00038356,120]
[404208253,1769966409982,-395.107207,0.00038356,120]
[404208254,1769966410047,-163.434185,0.00038356,120]
[404208255,1769966410113,-163.434185,0.00038356,120]
[404208256,1769966410177,-163.434185,0.00038356,120]
[404208257,1769966410242,-163.434185,0.00038356,120]
[404208258,1769966410309,-163.434185,0.00038356,120]
[404208259,1769966410375,-163.434185,0.00038356,120]
[404208260,1769966410439,-163.434185,0.00038356,120]
[404208261,1769966410504,-163.434185,0.00038356,120]
[404208262,1769966410570,-163.434185,0.00038356,120]
[404208263,1769966410634,-163.434185,0.00038356,120]
[404208264,1769966410699,-163.434185,0.00038356,120]
[404208265,1769966410762,-163.434185,0.00038356,120]
[404208266,1769966410827,-163.434185,0.00038356,120]
[404208267,1769966410890,-151.0,0.00038356,120]
[404208268,1769966410955,-163.434189,0.00038356,120]
[404208269,1769966411020,-215.04306,0.00038356,120]
[404208270,1769966411085,-280.296177,0.00038356,120]
[404208271,1769966411149,-280.296177,0.00038356,120]
[404208272,1769966411212,-280.296177,0.00038356,120]
[404208273,1769966411436,-280.296177,0.00038356,120]
[404208274,1769966411501,-280.296177,0.00038356,120]
[404208275,1769966411566,-280.296177,0.00038356,120]
[404208276,1769966411629,-280.296177,0.00038356,120]
[404208277,1769966411693,-151.0,0.00038356,120]
[404208278,1769966411756,-263.163,0.000385,120]
[404208279,1769966411821,-1670.048,0.0003884,53]
[404208280,1769966411884,-210.0,0.0003891,30]
[404208281,1769966411949,-325.986168,0.00039041,120]
[404208282,1769966412014,-325.986168,0.00039041,120]
[404208283,1769966412078,-325.986168,0.00039041,120]
[404208284,1769966412143,-325.986168,0.00039041,120]
[404208285,1769966412207,-325.986168,0.00039041,120]
[404208286,1769966412271,-325.986168,0.00039041,120]
[404208287,1769966412336,-325.986168,0.00039041,120]
[404208288,1769966412401,-325.986168,0.00039041,120]
[404208289,1769966412466,-325.986168,0.00039041,120]
[404208290,1769966412531,-325.986168,0.00039041,120]
[404208291,1769966412599,-325.986168,0.00039041,120]
[404208292,1769966412665,-325.986168,0.00039041,120]
[404208293,1769966412729,-325.986168,0.00039041,120]
[404208294,1769966412794,-325.986168,0.00039041,120]
[404208295,1769966412860,-325.986168,0.00039041,120]
[404208296,1769966412928,-325.986168,0.00039041,120]
[404208297,1769966412996,-325.986168,0.00039041,120]
[404208298,1769966413065,-325.986168,0.00039041,120]
[404208299,1769966413132,-325.986168,0.00039041,120]
[404208300,1769966413201,-325.986169,0.00039041,120]
[404208301,1769966413265,-6894.11681201,0.000391,120]
[404208302,1769966413328,-1000.0,0.00039178,120]
[404208303,1769966413391,-150.0,0.00039379,90]
[404208304,1769966413457,-173.0,0.000399,90]
[404208305,1769966413519,-2000.0,0.0004,30]
[404208306,1769966413582,-177.31951938,0.0004,120]
[404208307,1769966413647,-250.0,0.0004,45]
[404208308,1769966413711,-152.0,0.0004,120]
[404208309,1769966413776,-153.0,0.0004,120]
[404208310,1769966413841,-341.0,0.0004,120]
[404208311,1769966413911,-250.0,0.0004,45]
[404208312,1769966413979,-298.4395386,0.0004,120]
[404208313,1769966414045,-151.66,0.0004,30]
[404208314,1769966414111,-200.0,0.0004,120]
[404208315,1769966414176,-150.0,0.0004,120]
[404208316,1769966414239,-253.0,0.0004,30]
[404208317,1769966414304,-1000.0,0.0004,120]
[404208318,1769966414372,-217.2624496,0.0004001,120]
[404208319,1769966414438,-205.29138981,0.00040084,60]
[404208320,1769966414504,-300.012113,0.00040181,99]
[404208321,1769966414572,-6202.66,0.000402,30]
[404208322,1769966414640,-163.14848134,0.000405,45]
[404208323,1769966414710,-250.0,0.000405,45]
[404208324,1769966414779,-171.97,0.000407,30]
[404208325,1769966414848,-153.0,0.000407,120]
[404208326,1769966414918,-155.12,0.00040799,120]
[404208327,1769966414996,-152.0,0.000408,120]
[404208328,1769966415068,-343.1,0.000408,120]
[404208329,1769966415139,-1000.0,0.00040821,120]
[404208330,1769966415214,-155.12,0.00040899,120]
[404208331,1769966415283,-210.0,0.0004093,30]
[404208332,1769966415353,-155.12,0.00040999,120]
[404208333,1769966415418,-281.1552822,0.00041,120]
[404208334,1769966415482,-253.0,0.00041,34]
[404208335,1769966415550,-264.3,0.00041068,120]
[404208336,1769966415616,-281.16,0.00041068,120]
[404208337,1769966415681,-720.882,0.00041068,120]
[404208338,1769966415748,-151.0,0.00041084,60]
[404208339,1769966415813,-272.99359949,0.00041095,120]
[404208340,1769966415877,-229.36,0.00041096,120]
[404208341,1769966415942,-155.12,0.00041099,120]
[404208342,1769966416009,-289.48,0.000411,120]
[404208343,1769966416078,-203.99,0.000411,120]
[404208344,1769966416146,-158.65962292,0.000411,120]
[404208345,1769966416214,-158.65962292,0.000411,120]
[404208346,1769966416282,-158.65,0.000411,120]
[404208347,1769966416351,-204.86012053,0.000411,120]
[404208348,1769966416416,-204.86,0.000411,120]
[404208349,1769966416485,-159.3356493,0.000411,120]
[404208350,1769966416550,-159.3356493,0.000411,120]
[404208351,1769966416620,-159.3356493,0.000411,120]
[404208352,1769966416686,-159.3356493,0.000411,120]
[404208353,1769966416751,-159.3356493,0.000411,120]
[404208354,1769966416815,-159.33,0.000411,120]
[404208355,1769966416881,-155.12,0.00041199,120]
[404208356,1769966416948,-155.12,0.00041299,120]
[404208357,1769966417015,-153.0,0.000413,120]
[404208358,1769966417079,-153.0,0.00041348,90]
[404208359,1769966417145,-155.12,0.00041399,120]
[404208360,1769966417213,-979.46894328,0.00041414,120]
[404208361,1769966417280,-155.12,0.00041499,120]
[404208362,1769966417345,-152.0,0.000415,120]
[404208363,1769966417414,-970.42273886,0.000415,120]
[404208364,1769966417479,-300.0,0.00041573,30]
[404208365,1769966417544,-469.44,0.00041573,30]
[404208366,1769966417609,-360.37,0.00041573,30]
[404208367,1769966417678,-469.44,0.00041573,30]
[404208368,1769966417974,-469.44,0.00041573,30]
[404208369,1769966418044,-469.44,0.00041573,30]
[404208370,1769966418111,-468.84,0.00041573,30]
[404208371,1769966418180,-155.12,0.00041599,120]
[404208372,1769966418246,-500.0,0.00041643,60]
[404208373,1769966418311,-1000.0,0.00041643,120]
[404208374,1769966418377,-150.0,0.00041667,120]
[404208375,1769966418443,-1060.0,0.00041671,120]
[404208376,1769966418511,-155.12,0.00041699,120]
[404208377,1769966418577,-240.54906563,0.00041751,70]
[404208378,1769966418644,-155.12,0.00041799,120]
[404208379,1769966418710,-203.21,0.00041815,120]
[404208380,1769966418777,-150.0,0.00041878,120]
[404208381,1769966418845,-155.12,0.00041899,120]
[404208382,1769966418912,-584.55974727,0.000419,120]
[404208383,1769966418981,-429.26,0.00041902,120]
[404208384,1769966419048,-800.0,0.00041917,60]
[404208385,1769966419113,-500.0,0.00041917,60]
[404208386,1769966419180,-150.6690404,0.00041917,120]
[404208387,1769966419245,-200.0,0.00041971,120]
[404208388,1769966419312,-309.36,0.00041973,30]
[404208389,1769966419379,-155.12,0.00041999,120]
[404208390,1769966419444,-1000.0,0.00042,30]
[404208391,1769966419507,-610.0,0.00042,120]
[404208392,1769966419571,-71640.0,0.00042,30]
[404208393,1769966419636,-153.0,0.00042,120]
[404208394,1769966419700,-413.10901166,0.00042,120]
[404208395,1769966419764,-400.0,0.00042,37]
[404208396,1769966419830,-500.0,0.00042,120]
[404208397,1769966419894,-200.0,0.00042,120]
[404208398,1769966419960,-151.0,0.00042082,120]
[404208399,1769966420026,-151.0,0.00042082,120]
[404208400,1769966420092,-151.0,0.00042082,120]
[404208401,1769966420159,-151.0,0.00042082,120]
[404208402,1769966420225,-151.0,0.00042082,120]
[404208403,1769966420293,-151.0,0.00042082,120]
[404208404,1769966420359,-151.0,0.00042082,120]
[404208405,1769966420424,-151.0,0.00042082,120]
[404208406,1769966420489,-151.0,0.00042082,120]
[404208407,1769966420555,-151.0,0.00042082,120]
[404208408,1769966420621,-151.0,0.00042082,120]
[404208409,1769966420685,-151.0,0.00042082,120]
[404208410,1769966420748,-151.0,0.00042082,120]
[404208411,1769966420812,-151.0,0.00042082,120]
[404208412,1769966420876,-151.0,0.00042082,120]
[404208413,1769966420944,-151.0,0.00042082,120]
[404208414,1769966421008,-208.774201,0.00042082,120]
[404208415,1769966421072,-151.0,0.00042084,60]
[404208416,1769966421139,-155.12,0.00042099,120]
[404208417,1769966421202,-500.0,0.00042191,60]
[404208418,1769966421267,-155.12,0.00042199,120]
[404208419,1769966421333,-217.2624496,0.00042202,120]
[404208420,1769966421398,-155.12,0.00042299,120]
[404208421,1769966421462,-152.0,0.000423,120]
[404208422,1769966421526,-5770.0,0.00042325,30]
[404208423,1769966421593,-155.12,0.00042399,120]
[404208424,1769966421657,-6202.66,0.000424,30]
[404208425,1769966421722,-500.0,0.00042438,120]
[404208426,1769966421787,-500.0,0.00042438,120]
[404208427,1769966421851,-800.0,0.00042465,60]
[404208428,1769966421920,-500.0,0.00042465,60]
[404208429,1769966421992,-1000.0,0.00042465,120]
[404208430,1769966422060,-150.0,0.00042466,120]
[404208431,1769966422124,-2019.31359436,0.00042475,120]
[404208432,1769966422191,-155.12,0.00042499,120]
[404208433,1769966422255,-150.0,0.00042521,120]
[404208434,1769966422320,-657.20463,0.00042532,30]
[404208435,1769966422384,-500.0,0.00042575,120]
[404208436,1769966422450,-500.0,0.00042575,120]
[404208437,1769966422516,-150.0,0.00042576,120]
[404208438,1769966422583,-155.12,0.00042599,120]
[404208439,1769966422649,-153.0,0.000426,120]
[404208440,1769966422714,-642.78,0.00042602,30]
[404208441,1769966422778,-642.78,0.00042602,30]
[404208442,1769966422843,-642.78,0.00042602,30]
[404208443,1769966422918,-642.78,0.00042602,30]
[404208444,1769966422988,-150.0,0.0004263,120]
[404208445,1769966423055,-3856.96365038,0.00042633,120]
[404208446,1769966423123,-286.77007535,0.00042685,120]
[404208447,1769966423194,-155.12,0.00042699,120]
[404208448,1769966423262,-500.0,0.00042712,120]
[404208449,1769966423333,-500.0,0.00042712,120]
[404208450,1769966423403,-500.0,0.00042739,60]
[404208451,1769966423471,-154.41,0.0004274,91]
[404208452,1769966423540,-5770.0,0.00042761,30]
[404208453,1769966423608,-173.0500197,0.00042777,34]
[404208454,1769966423676,-155.12,0.00042799,120]
[404208455,1769966423742,-1000.0,0.000428,120]
[404208456,1769966423809,-297.29810929,0.000428,120]
[404208457,1769966423877,-538.62776297,0.00042849,120]
[404208458,1769966423946,-500.0,0.00042849,120]
[404208459,1769966424013,-642.78,0.00042876,30]
[404208460,1769966424081,-642.78,0.00042876,30]
[404208461,1769966424153,-155.12,0.00042899,120]
[404208462,1769966424386,-210.0,0.0004295,30]
[404208463,1769966424451,-500.0,0.00042986,120]
[404208464,1769966424517,-155.12,0.00042999,120]
[404208465,1769966424582,-150.0,0.00043,30]
[404208466,1769966424645,-400.0,0.00043,30]
[404208467,1769966424708,-400.0,0.00043,120]
[404208468,1769966424773,-418.173658,0.00043,120]
[404208469,1769966424838,-150.0,0.00043,30]
[404208470,1769966424904,-1000.0,0.00043,90]
[404208471,1769966424969,-1000.0,0.00043,30]
[404208472,1769966425036,-672.9555693,0.00043,120]
[404208473,1769966425100,-169.11344871,0.00043,120]
[404208474,1769966425166,-35591.42182483,0.00043,30]
[404208475,1769966425232,-152.0,0.00043,120]
[404208476,1769966425297,-1273.35388038,0.00043,120]
[404208477,1769966425360,-348.0,0.00043,30]
[404208478,1769966425425,-185.0,0.00043,30]
[404208479,1769966425488,-150.0,0.00043001,120]
[404208480,1769966425555,-150.0,0.00043001,120]
[404208481,1769966425620,-500.0,0.00043013,60]
[404208482,1769966425684,-800.0,0.00043013,60]
[404208483,1769966425750,-300.0,0.00043014,30]
[404208484,1769966425814,-300.0,0.00043014,30]
[404208485,1769966425879,-300.0,0.00043014,30]
[404208486,1769966425943,-300.0,0.00043014,30]
[404208487,1769966426009,-300.0,0.00043014,30]
[404208488,1769966426072,-300.0,0.00043014,30]
[404208489,1769966426135,-300.0,0.00043014,30]
[404208490,1769966426200,-300.0,0.00043014,30]
[404208491,1769966426266,-200.0,0.00043031,120]
[404208492,1769966426331,-151.0,0.00043084,60]
[404208493,1769966426401,-155.12,0.00043099,120]
[404208494,1769966426467,-346.16298521,0.000431,120]
[404208495,1769966426530,-252.65,0.000431,120]
[404208496,1769966426595,-500.0,0.00043123,120]
[404208497,1769966426658,-150.0,0.00043125,120]
[404208498,1769966426722,-150.0,0.00043125,120]
[404208499,1769966426786,-642.78,0.0004315,30]
[404208500,1769966426849,-642.78,0.0004315,30]
[404208501,1769966426914,-2728.35814333,0.00043192,70]
[404208502,1769966426980,-908.67400854,0.00043192,70]
[404208503,1769966427043,-5770.0,0.00043198,30]
[404208504,1769966427107,-155.12,0.00043199,120]
[404208505,1769966427173,-1000000.0,0.000432,30]
[404208506,1769966427235,-328.19191598,0.000432,120]
[404208507,1769966427301,-151.0,0.000432,120]
[404208508,1769966427367,-1000000.0,0.0004321,120]
[404208509,1769966427432,-287.46715667,0.00043221,30]
[404208510,1769966427497,-500.0,0.0004326,120]
[404208511,1769966427562,-500.0,0.00043287,60]
[404208512,1769966427626,-151.0,0.00043287,60]
[404208513,1769966427689,-158.59876847,0.00043287,120]
[404208514,1769966427752,-500.0,0.00043287,120]
[404208515,1769966427818,-276.71690342,0.00043287,120]